[Event "FIDE Grand Swiss 2023"]
[Site "Villa Marina, Douglas, Isle of Man"]
[Date "2023.10.28"]
[Round "4.42"]
[White "Svane, Rasmus"]
[Black "Mendonca, Leon Luke"]
[Result "1-0"]
[WhiteElo "2646"]
[BlackElo "2622"]
[EventDate "2023.10.25"]
[ECO "D47"]
[PlyCount "85"]
[BlackFideId "35028561"]
[TimeControl "40/100 + 20/50 + 15 + 30s/move"]
[WhiteFideId "4657101"]

1.c4 {[%clk 01:40:56] [%emt 00:00:02]} 1...c6 {[%clk 01:40:33] [%emt 00:00:28]} 
2.Nf3 {[%clk 01:40:34] [%emt 00:00:52]} 2...d5 {[%clk 01:40:55] [%emt 00:00:08]} 
3.e3 {[%clk 01:40:58] [%emt 00:00:05]} 3...Nf6 {[%clk 01:41:20] [%emt 00:00:06]} 
4.Nc3 {[%clk 01:41:17] [%emt 00:00:12]} 4...e6 {[%clk 01:39:06] [%emt 00:02:43]} 
5.d4 {[%clk 01:41:38] [%emt 00:00:09]} 5...Nbd7 {[%clk 01:39:12] [%emt
00:00:24]} 6.Bd3 {[%clk 01:41:54] [%emt 00:00:14]} 6...dxc4 {[%clk 01:37:54]
[%emt 00:01:47]} 7.Bxc4 {[%clk 01:42:18] [%emt 00:00:06]} 7...b5 {[%clk
01:38:12] [%emt 00:00:14]} 8.Bd3 {[%clk 01:42:44] [%emt 00:00:03]} 8...Bb7 
{[%clk 01:36:00] [%emt 00:02:43]} 9.O-O {[%clk 01:42:25] [%emt 00:00:47]} 
9...a6 {[%clk 01:33:49] [%emt 00:02:42]} 10.e4 {[%clk 01:42:40] [%emt 00:00:14]} 
10...c5 {[%clk 01:34:02] [%emt 00:00:18]} 11.d5 {[%clk 01:43:06] [%emt
00:00:04]} 11...Qc7 {[%clk 01:28:52] [%emt 00:05:40]} 12.Qe2 {[%clk 01:42:48]
[%emt 00:00:49]} 12...c4 {[%clk 01:27:29] [%emt 00:01:52]} 13.Bc2 {[%clk
01:43:12] [%emt 00:00:05]} 13...Bd6 {[%clk 01:21:17] [%emt 00:06:43]} 14.Re1 
{[%clk 01:42:46] [%emt 00:00:56]} 14...Ne5 {[%clk 01:03:10] [%emt 00:18:37]} 
15.Nxe5 {[%clk 01:42:18] [%emt 00:00:58]} 15...Bxe5 {[%clk 01:03:28] [%emt
00:00:13]} 16.f4 {[%clk 01:42:44] [%emt 00:00:03]} 16...Bd4+ {[%clk 00:42:13]
[%emt 00:21:46]} 17.Kh1 {[%clk 01:42:48] [%emt 00:00:25]} 17...exd5 {[%clk
00:26:17] [%emt 00:16:26]} 18.e5 {[%clk 01:31:49] [%emt 00:11:29]} 18...Ne4 
{[%clk 00:25:22] [%emt 00:01:25]} 19.Nxd5 {[%clk 01:19:08] [%emt 00:13:11]} 
19...Bxd5 {[%clk 00:25:45] [%emt 00:00:08]} 20.Bxe4 {[%clk 01:19:32] [%emt
00:00:05]} 20...Rd8 {[%clk 00:22:07] [%emt 00:04:09]} 21.e6 {[%clk 00:50:34]
[%emt 00:29:27]} 21...Qc6 {[%clk 00:18:30] [%emt 00:04:07]} 22.Bxd5 {[%clk
00:48:53] [%emt 00:02:11]} 22...Qxd5 {[%clk 00:17:34] [%emt 00:01:26]} 23.Be3 
{[%clk 00:47:30] [%emt 00:01:54]} 23...Bxe3 {[%clk 00:09:53] [%emt 00:08:10]} 
24.e7 {[%clk 00:43:43] [%emt 00:04:17]} 24...Rd7 {[%clk 00:08:14] [%emt
00:02:10]} 25.Qxe3 {[%clk 00:43:57] [%emt 00:00:15]} 25...h5 {[%clk 00:07:41]
[%emt 00:01:03]} 26.Qg3 {[%clk 00:32:43] [%emt 00:11:45]} 26...h4 {[%clk
00:02:16] [%emt 00:05:55]} 27.Qxg7 {[%clk 00:31:51] [%emt 00:01:21]} 27...Qd4 
{[%clk 00:02:40] [%emt 00:00:07]} 28.Qg4 {[%clk 00:31:18] [%emt 00:01:02]} 
28...Rxe7 {[%clk 00:02:13] [%emt 00:00:57]} 29.Qc8+ {[%clk 00:27:09] [%emt
00:04:39]} 29...Qd8 {[%clk 00:02:42] [%emt 00:00:02]} 30.Rxe7+ {[%clk 00:11:58]
[%emt 00:15:40]} 30...Kxe7 {[%clk 00:03:11] [%emt 00:00:01]} 31.Re1+ {[%clk
00:12:00] [%emt 00:00:28]} 31...Kf6 {[%clk 00:03:40] [%emt 00:00:01]} 32.Qxa6+ 
{[%clk 00:11:38] [%emt 00:00:52]} 32...Kg7 {[%clk 00:04:10] [%emt 00:00:01]} 
33.Qxb5 {[%clk 00:11:59] [%emt 00:00:09]} 33...Qf6 {[%clk 00:01:35] [%emt
00:03:04]} 34.Qxc4 {[%clk 00:07:06] [%emt 00:05:23]} 34...Qxb2 {[%clk 00:02:04]
[%emt 00:00:02]} 35.h3 {[%clk 00:07:17] [%emt 00:00:19]} 35...Rd8 {[%clk
00:01:35] [%emt 00:00:59]} 36.f5 {[%clk 00:04:20] [%emt 00:03:27]} 36...Qd4 
{[%clk 00:00:41] [%emt 00:01:24]} 37.Qe2 {[%clk 00:02:19] [%emt 00:02:30]} 
37...Ra8 {[%clk 00:00:48] [%emt 00:00:23]} 38.Rf1 {[%clk 00:01:45] [%emt
00:01:04]} 38...Qf6 {[%clk 00:00:32] [%emt 00:00:46]} 39.Qg4+ {[%clk 00:01:04]
[%emt 00:01:11]} 39...Kf8 {[%clk 00:00:32] [%emt 00:00:30]} 40.a4 {[%clk
00:01:17] [%emt 00:00:18]} 40...Rd8 {[%emt 00:08:12]} 41.Rb1 {[%clk 00:44:03]} 
41...Ra8 {[%clk 00:36:28] [%emt 00:14:34]} 42.a5 {[%clk 00:38:02] [%emt
00:06:30]} 42...Qe5 {[%clk 00:36:06] [%emt 00:00:53]} 43.Qxh4 {[%clk 00:37:20]
[%emt 00:01:12]} 1-0

[Event "FIDE Grand Swiss 2023"]
[Site "Villa Marina, Douglas, Isle of Man"]
[Date "2023.10.28"]
[Round "4.43"]
[White "Vokhidov, Shamsiddin"]
[Black "Mamedov, Rauf"]
[Result "1/2-1/2"]
[WhiteElo "2578"]
[BlackElo "2640"]
[EventDate "2023.10.25"]
[ECO "B30"]
[PlyCount "68"]
[BlackFideId "13401653"]
[TimeControl "40/100 + 20/50 + 15 + 30s/move"]
[WhiteFideId "14204223"]

1.e4 {[%clk 01:40:56] [%emt 00:00:03]} 1...c5 {[%clk 01:40:51] [%emt 00:00:10]} 
2.Nf3 {[%clk 01:41:21] [%emt 00:00:05]} 2...Nc6 {[%clk 01:41:14] [%emt
00:00:07]} 3.Bb5 {[%clk 01:41:36] [%emt 00:00:16]} 3...d6 {[%clk 01:41:38] [%emt
00:00:06]} 4.O-O {[%clk 01:40:30] [%emt 00:01:34]} 4...Bd7 {[%clk 01:41:50]
[%emt 00:00:19]} 5.Re1 {[%clk 01:40:55] [%emt 00:00:05]} 5...Nf6 {[%clk
01:42:16] [%emt 00:00:05]} 6.c3 {[%clk 01:41:19] [%emt 00:00:06]} 6...a6 {[%clk
01:42:42] [%emt 00:00:03]} 7.Bf1 {[%clk 01:41:45] [%emt 00:00:04]} 7...Bg4 
{[%clk 01:43:08] [%emt 00:00:04]} 8.h3 {[%clk 01:42:11] [%emt 00:00:04]} 
8...Bxf3 {[%clk 01:43:35] [%emt 00:00:03]} 9.Qxf3 {[%clk 01:42:36] [%emt
00:00:05]} 9...Rg8 {[%clk 01:43:59] [%emt 00:00:06]} 10.Qe3 {[%clk 01:36:48]
[%emt 00:06:19]} 10...g5 {[%clk 01:41:26] [%emt 00:03:02]} 11.d4 {[%clk
01:36:31] [%emt 00:00:47]} 11...cxd4 {[%clk 01:07:22] [%emt 00:34:35]} 12.cxd4 
{[%clk 01:36:44] [%emt 00:00:17]} 12...e5 {[%clk 01:07:34] [%emt 00:00:18]} 
13.dxe5 {[%clk 01:32:14] [%emt 00:04:59]} 13...dxe5 {[%clk 01:07:30] [%emt
00:00:35]} 14.Nc3 {[%clk 01:31:55] [%emt 00:00:48]} 14...g4 {[%clk 01:01:24]
[%emt 00:06:36]} 15.Rd1 {[%clk 01:24:07] [%emt 00:08:17]} 15...Nd4 {[%clk
00:52:34] [%emt 00:09:21]} 16.Qg3 {[%clk 01:14:46] [%emt 00:09:51]} 16...Bd6 
{[%clk 00:45:59] [%emt 00:07:05]} 17.hxg4 {[%clk 01:09:05] [%emt 00:06:11]} 
17...Rxg4 {[%clk 00:42:44] [%emt 00:03:46]} 18.Qh3 {[%clk 01:08:13] [%emt
00:01:21]} 18...Qc8 {[%clk 00:27:50] [%emt 00:15:24]} 19.Be3 {[%clk 00:56:54]
[%emt 00:11:49]} 19...Rg6 {[%clk 00:26:50] [%emt 00:01:31]} 20.Qxc8+ {[%clk
00:46:59] [%emt 00:10:25]} 20...Rxc8 {[%clk 00:26:13] [%emt 00:01:06]} 21.Bxd4 
{[%clk 00:47:07] [%emt 00:00:22]} 21...exd4 {[%clk 00:26:39] [%emt 00:00:04]} 
22.Rxd4 {[%clk 00:47:31] [%emt 00:00:06]} 22...Bc5 {[%clk 00:25:41] [%emt
00:01:28]} 23.Rd2 {[%clk 00:44:31] [%emt 00:03:31]} 23...Ng4 {[%clk 00:21:51]
[%emt 00:04:20]} 24.Bd3 {[%clk 00:37:00] [%emt 00:08:00]} 24...Rh6 {[%clk
00:13:21] [%emt 00:09:01]} 25.Nd5 {[%clk 00:29:05] [%emt 00:08:24]} 25...Bxf2+ 
{[%clk 00:12:30] [%emt 00:01:21]} 26.Rxf2 {[%clk 00:29:19] [%emt 00:00:15]} 
26...Rh1+ {[%clk 00:12:58] [%emt 00:00:03]} 27.Kxh1 {[%clk 00:29:45] [%emt
00:00:04]} 27...Nxf2+ {[%clk 00:13:26] [%emt 00:00:02]} 28.Kh2 {[%clk 00:27:09]
[%emt 00:03:06]} 28...Nxd3 {[%clk 00:13:49] [%emt 00:00:07]} 29.Kg3 {[%clk
00:24:06] [%emt 00:03:33]} 29...Rc2 {[%clk 00:10:39] [%emt 00:03:40]} 30.b4 
{[%clk 00:22:50] [%emt 00:01:46]} 30...Kf8 {[%clk 00:08:17] [%emt 00:02:53]} 
31.Rd1 {[%clk 00:18:50] [%emt 00:04:30]} 31...Ne5 {[%clk 00:06:46] [%emt
00:02:00]} 32.a4 {[%clk 00:18:19] [%emt 00:01:02]} 32...Rb2 {[%clk 00:06:52]
[%emt 00:00:23]} 33.Rc1 {[%clk 00:16:15] [%emt 00:02:35]} 33...Rb3+ {[%clk
00:04:54] [%emt 00:02:28]} 34.Rc3 {[%clk 00:15:34] [%emt 00:01:10]} 34...Rxc3+ 
{[%clk 00:04:44] [%emt 00:00:05]} 1/2-1/2

[Event "FIDE Grand Swiss 2023"]
[Site "Villa Marina, Douglas, Isle of Man"]
[Date "2023.10.28"]
[Round "4.44"]
[White "Amar, Elham"]
[Black "Warmerdam, Max"]
[Result "1-0"]
[WhiteElo "2568"]
[BlackElo "2636"]
[EventDate "2023.10.25"]
[ECO "B89"]
[PlyCount "81"]
[BlackFideId "1048104"]
[TimeControl "40/100 + 20/50 + 15 + 30s/move"]
[WhiteFideId "1533533"]

1.e4 {[%clk 01:40:54] [%emt 00:00:05]} 1...c5 {[%clk 01:40:54] [%emt 00:00:06]} 
2.Nf3 {[%clk 01:41:16] [%emt 00:00:08]} 2...d6 {[%clk 01:41:17] [%emt 00:00:08]} 
3.d4 {[%clk 01:41:39] [%emt 00:00:07]} 3...cxd4 {[%clk 01:41:41] [%emt
00:00:05]} 4.Nxd4 {[%clk 01:42:07] [%emt 00:00:03]} 4...Nf6 {[%clk 01:42:02]
[%emt 00:00:09]} 5.Nc3 {[%clk 01:42:32] [%emt 00:00:05]} 5...Nc6 {[%clk
01:42:26] [%emt 00:00:05]} 6.Bc4 {[%clk 01:42:56] [%emt 00:00:07]} 6...e6 
{[%clk 01:42:49] [%emt 00:00:06]} 7.Be3 {[%clk 01:43:21] [%emt 00:00:06]} 
7...Bd7 {[%clk 01:41:16] [%emt 00:02:03]} 8.Qe2 {[%clk 01:42:42] [%emt
00:01:08]} 8...a6 {[%clk 01:41:28] [%emt 00:00:18]} 9.O-O-O {[%clk 01:37:01]
[%emt 00:06:11]} 9...b5 {[%clk 01:41:04] [%emt 00:00:54]} 10.Bb3 {[%clk
01:35:53] [%emt 00:01:38]} 10...Na5 {[%clk 01:40:18] [%emt 00:01:16]} 11.f3 
{[%clk 01:30:14] [%emt 00:06:09]} 11...Be7 {[%clk 01:39:42] [%emt 00:01:06]} 
12.g4 {[%clk 01:27:52] [%emt 00:02:53]} 12...O-O {[%clk 01:23:41] [%emt
00:16:30]} 13.g5 {[%clk 01:17:28] [%emt 00:10:54]} 13...Nh5 {[%clk 01:23:14]
[%emt 00:00:57]} 14.f4 {[%clk 01:14:31] [%emt 00:03:28]} 14...g6 {[%clk
01:23:08] [%emt 00:00:36]} 15.Kb1 {[%clk 01:13:18] [%emt 00:01:43]} 15...Nxb3 
{[%clk 01:10:05] [%emt 00:13:32]} 16.axb3 {[%clk 01:11:46] [%emt 00:02:02]} 
16...b4 {[%clk 01:08:24] [%emt 00:02:11]} 17.Na4 {[%clk 01:12:10] [%emt
00:00:07]} 17...Qc7 {[%clk 01:06:34] [%emt 00:02:20]} 18.f5 {[%clk 01:03:53]
[%emt 00:08:47]} 18...Qb7 {[%clk 01:00:56] [%emt 00:06:08]} 19.f6 {[%clk
00:54:41] [%emt 00:09:42]} 19...Bd8 {[%clk 00:59:41] [%emt 00:01:44]} 20.Bc1 
{[%clk 00:44:20] [%emt 00:10:51]} 20...Rc8 {[%clk 00:53:27] [%emt 00:06:44]} 
21.Rhe1 {[%clk 00:38:02] [%emt 00:06:48]} 21...Bc7 {[%clk 00:44:46] [%emt
00:09:12]} 22.e5 {[%clk 00:27:26] [%emt 00:11:06]} 22...Rfd8 {[%clk 00:31:45]
[%emt 00:13:30]} 23.exd6 {[%clk 00:20:41] [%emt 00:07:16]} 23...Bxd6 {[%clk
00:31:02] [%emt 00:01:13]} 24.Nf5 {[%clk 00:17:22] [%emt 00:03:49]} 24...exf5 
{[%clk 00:16:03] [%emt 00:15:29]} 25.Rxd6 {[%clk 00:17:45] [%emt 00:00:07]} 
25...Bxa4 {[%clk 00:11:17] [%emt 00:05:16]} 26.bxa4 {[%clk 00:17:28] [%emt
00:00:47]} 26...h6 {[%clk 00:10:56] [%emt 00:00:51]} 27.Qxa6 {[%clk 00:13:11]
[%emt 00:04:46]} 27...Qxa6 {[%clk 00:10:55] [%emt 00:00:32]} 28.Rxa6 {[%clk
00:13:40] [%emt 00:00:02]} 28...hxg5 {[%clk 00:11:09] [%emt 00:00:15]} 29.Bxg5 
{[%clk 00:13:50] [%emt 00:00:19]} 29...f4 {[%clk 00:11:28] [%emt 00:00:12]} 
30.Rb6 {[%clk 00:12:59] [%emt 00:01:22]} 30...Rd2 {[%clk 00:07:09] [%emt
00:04:48]} 31.Rxb4 {[%clk 00:11:40] [%emt 00:01:49]} 31...Rxh2 {[%clk 00:02:03]
[%emt 00:05:36]} 32.Bxf4 {[%clk 00:11:37] [%emt 00:00:33]} 32...Rhxc2 {[%clk
00:02:22] [%emt 00:00:11]} 33.Be5 {[%clk 00:07:54] [%emt 00:04:12]} 33...R2c6 
{[%clk 00:02:43] [%emt 00:00:10]} 34.Rf1 {[%clk 00:08:08] [%emt 00:00:16]} 
34...Rc5 {[%clk 00:01:57] [%emt 00:01:16]} 35.Bc3 {[%clk 00:08:04] [%emt
00:00:34]} 35...g5 {[%clk 00:01:31] [%emt 00:00:56]} 36.Rh1 {[%clk 00:06:16]
[%emt 00:02:18]} 36...Nf4 {[%clk 00:01:38] [%emt 00:00:23]} 37.Re4 {[%clk
00:05:45] [%emt 00:01:01]} 37...Nd5 {[%clk 00:00:40] [%emt 00:01:29]} 38.Bd4 
{[%clk 00:05:42] [%emt 00:00:32]} 38...Rc4 {[%clk 00:01:08] [%emt 00:00:01]} 
39.Rg4 {[%clk 00:03:27] [%emt 00:02:45]} 39...Nf4 {[%clk 00:01:37] [%emt
00:00:01]} 40.Be3 {[%clk 00:02:55] [%emt 00:01:03]} 40...Ng6 {[%clk 00:00:59]
[%emt 00:01:08]} 41.Rhg1 {[%clk 00:01:32] [%emt 00:01:52]} 1-0

[Event "FIDE Grand Swiss 2023"]
[Site "Villa Marina, Douglas, Isle of Man"]
[Date "2023.10.28"]
[Round "4.45"]
[White "Aryan, Chopra"]
[Black "Theodorou, Nikolas"]
[Result "1/2-1/2"]
[WhiteElo "2634"]
[BlackElo "2619"]
[EventDate "2023.10.25"]
[ECO "A21"]
[PlyCount "143"]
[BlackFideId "4262875"]
[TimeControl "40/100 + 20/50 + 15 + 30s/move"]
[WhiteFideId "5084423"]

1.c4 {[%clk 01:40:57] [%emt 00:00:03]} 1...e5 {[%clk 01:40:56] [%emt 00:00:04]} 
2.Nc3 {[%clk 01:41:22] [%emt 00:00:05]} 2...Bb4 {[%clk 01:41:23] [%emt
00:00:03]} 3.Nd5 {[%clk 01:41:27] [%emt 00:00:25]} 3...Be7 {[%clk 01:41:47]
[%emt 00:00:06]} 4.Nf3 {[%clk 01:39:04] [%emt 00:02:53]} 4...d6 {[%clk 01:42:08]
[%emt 00:00:09]} 5.g3 {[%clk 01:37:20] [%emt 00:02:14]} 5...c6 {[%clk 01:42:16]
[%emt 00:00:22]} 6.Nxe7 {[%clk 01:30:59] [%emt 00:06:51]} 6...Nxe7 {[%clk
01:42:43] [%emt 00:00:03]} 7.Bg2 {[%clk 01:30:18] [%emt 00:01:12]} 7...O-O 
{[%clk 01:43:05] [%emt 00:00:07]} 8.O-O {[%clk 01:30:22] [%emt 00:00:25]} 
8...f6 {[%clk 01:43:32] [%emt 00:00:04]} 9.d3 {[%clk 01:21:17] [%emt 00:09:35]} 
9...Be6 {[%clk 01:43:56] [%emt 00:00:06]} 10.b4 {[%clk 01:19:20] [%emt
00:02:28]} 10...Qd7 {[%clk 01:42:19] [%emt 00:02:06]} 11.a4 {[%clk 01:18:09]
[%emt 00:01:41]} 11...Bh3 {[%clk 01:41:18] [%emt 00:01:31]} 12.e4 {[%clk
01:14:52] [%emt 00:03:47]} 12...Bxg2 {[%clk 01:39:48] [%emt 00:02:01]} 13.Kxg2 
{[%clk 01:15:17] [%emt 00:00:04]} 13...Qe6 {[%clk 01:40:03] [%emt 00:00:16]} 
14.Qe2 {[%clk 01:05:35] [%emt 00:10:12]} 14...Nd7 {[%clk 01:16:59] [%emt
00:23:34]} 15.d4 {[%clk 00:53:02] [%emt 00:13:03]} 15...Rae8 {[%clk 01:15:21]
[%emt 00:02:08]} 16.d5 {[%clk 00:51:02] [%emt 00:02:29]} 16...cxd5 {[%clk
01:06:08] [%emt 00:09:43]} 17.cxd5 {[%clk 00:50:25] [%emt 00:01:08]} 17...Qg4 
{[%clk 01:06:32] [%emt 00:00:06]} 18.h3 {[%clk 00:47:10] [%emt 00:03:45]} 
18...Qg6 {[%clk 01:06:57] [%emt 00:00:04]} 19.Nh4 {[%clk 00:44:08] [%emt
00:03:32]} 19...Qf7 {[%clk 01:07:25] [%emt 00:00:03]} 20.Qb5 {[%clk 00:38:48]
[%emt 00:05:49]} 20...Rd8 {[%clk 01:06:35] [%emt 00:01:20]} 21.Qxb7 {[%clk
00:38:56] [%emt 00:00:23]} 21...f5 {[%clk 01:05:03] [%emt 00:02:01]} 22.Nxf5 
{[%clk 00:35:22] [%emt 00:04:04]} 22...Nxf5 {[%clk 01:05:31] [%emt 00:00:02]} 
23.exf5 {[%clk 00:35:47] [%emt 00:00:06]} 23...Qxf5 {[%clk 01:04:10] [%emt
00:01:50]} 24.Qxa7 {[%clk 00:33:51] [%emt 00:02:26]} 24...Nf6 {[%clk 01:04:35]
[%emt 00:00:05]} 25.Qe3 {[%clk 00:30:04] [%emt 00:04:17]} 25...Rc8 {[%clk
01:05:04] [%emt 00:00:02]} 26.Ra3 {[%clk 00:19:51] [%emt 00:10:43]} 26...Nxd5 
{[%clk 00:57:53] [%emt 00:07:41]} 27.Qb3 {[%clk 00:19:58] [%emt 00:00:22]} 
27...e4 {[%clk 00:56:48] [%emt 00:01:36]} 28.Bf4 {[%clk 00:12:25] [%emt
00:08:03]} 28...Rc3 {[%clk 00:20:03] [%emt 00:37:15]} 29.Qa2 {[%clk 00:12:48]
[%emt 00:00:06]} 29...Qf7 {[%clk 00:20:29] [%emt 00:00:04]} 30.Rd1 {[%clk
00:07:46] [%emt 00:05:32]} 30...Rxa3 {[%clk 00:17:35] [%emt 00:03:24]} 31.Qxd5 
{[%clk 00:08:12] [%emt 00:00:05]} 31...Qxd5 {[%clk 00:16:45] [%emt 00:01:20]} 
32.Rxd5 {[%clk 00:08:40] [%emt 00:00:02]} 32...Rxa4 {[%clk 00:17:08] [%emt
00:00:07]} 33.Rxd6 {[%clk 00:05:45] [%emt 00:03:25]} 33...Rxb4 {[%clk 00:16:53]
[%emt 00:00:44]} 34.Rd7 {[%clk 00:06:07] [%emt 00:00:08]} 34...Re8 {[%clk
00:14:34] [%emt 00:02:49]} 35.Be3 {[%clk 00:06:09] [%emt 00:00:28]} 35...Reb8 
{[%clk 00:14:35] [%emt 00:00:30]} 36.g4 {[%clk 00:05:39] [%emt 00:01:00]} 
36...R4b7 {[%clk 00:13:54] [%emt 00:01:11]} 37.Rd5 {[%clk 00:05:38] [%emt
00:00:30]} 37...Re8 {[%clk 00:13:27] [%emt 00:00:57]} 38.h4 {[%clk 00:05:00]
[%emt 00:01:08]} 38...h6 {[%clk 00:05:35] [%emt 00:08:23]} 39.h5 {[%clk
00:04:39] [%emt 00:00:50]} 39...Re6 {[%clk 00:05:34] [%emt 00:00:31]} 40.Kg3 
{[%clk 00:03:21] [%emt 00:01:48]} 40...Rf7 {[%clk 00:05:22] [%emt 00:00:43]} 
41.Rd4 {[%clk 00:00:39] [%emt 00:03:12]} 41...Kh7 {[%clk 00:02:29] [%emt
00:03:23]} 42.Ra4 {[%clk 00:50:12] [%emt 00:00:57]} 42...Rf3+ {[%clk 00:52:27]
[%emt 00:00:31]} 43.Kg2 {[%clk 00:50:25] [%emt 00:00:17]} 43...Rf7 {[%clk
00:52:52] [%emt 00:00:05]} 44.Kg3 {[%clk 00:50:51] [%emt 00:00:04]} 44...Rfe7 
{[%clk 00:51:18] [%emt 00:02:05]} 45.Bc5 {[%clk 00:47:51] [%emt 00:03:29]} 
45...Rb7 {[%clk 00:48:10] [%emt 00:03:38]} 46.Be3 {[%clk 00:47:48] [%emt
00:00:34]} 46...Rd7 {[%clk 00:47:29] [%emt 00:01:11]} 47.Rb4 {[%clk 00:46:33]
[%emt 00:01:45]} 47...Rde7 {[%clk 00:46:35] [%emt 00:01:24]} 48.Ra4 {[%clk
00:46:25] [%emt 00:00:38]} 48...g6 {[%clk 00:45:52] [%emt 00:01:13]} 49.hxg6+ 
{[%clk 00:45:09] [%emt 00:01:46]} 49...Rxg6 {[%clk 00:45:44] [%emt 00:00:38]} 
50.Kh4 {[%clk 00:44:54] [%emt 00:00:45]} 50...Rge6 {[%clk 00:43:55] [%emt
00:02:19]} 51.Rb4 {[%clk 00:41:59] [%emt 00:03:24]} 51...Rd7 {[%clk 00:41:11]
[%emt 00:03:14]} 52.Kg3 {[%clk 00:41:03] [%emt 00:01:26]} 52...Kg6 {[%clk
00:37:27] [%emt 00:04:14]} 53.Rb5 {[%clk 00:37:02] [%emt 00:04:31]} 53...Rf7 
{[%clk 00:37:25] [%emt 00:00:33]} 54.Kg2 {[%clk 00:35:41] [%emt 00:01:51]} 
54...Kg7 {[%clk 00:36:10] [%emt 00:01:45]} 55.Rb4 {[%clk 00:35:35] [%emt
00:00:36]} 55...Kh7 {[%clk 00:35:59] [%emt 00:00:40]} 56.Kg3 {[%clk 00:34:49]
[%emt 00:01:16]} 56...Kg6 {[%clk 00:34:01] [%emt 00:02:28]} 57.Rb5 {[%clk
00:35:04] [%emt 00:00:15]} 57...Kg7 {[%clk 00:32:53] [%emt 00:01:38]} 58.Rb4 
{[%clk 00:35:10] [%emt 00:00:24]} 58...Kh7 {[%clk 00:31:40] [%emt 00:01:44]} 
59.Ra4 {[%clk 00:35:25] [%emt 00:00:16]} 59...Rg7 {[%clk 00:31:26] [%emt
00:00:43]} 60.Kh4 {[%clk 00:35:19] [%emt 00:00:36]} 60...Rb7 {[%clk 00:30:10]
[%emt 00:01:46]} 61.Kg3 {[%clk 00:34:31] [%emt 00:01:18]} 61...Kg7 {[%clk
00:27:44] [%emt 00:02:56]} 62.Rc4 {[%clk 00:33:47] [%emt 00:01:14]} 62...Rd7 
{[%clk 00:23:56] [%emt 00:04:18]} 63.Rb4 {[%clk 00:32:21] [%emt 00:01:56]} 
63...Rde7 {[%clk 00:22:50] [%emt 00:01:36]} 64.Rb5 {[%clk 00:28:58] [%emt
00:03:53]} 64...Kh7 {[%clk 00:21:49] [%emt 00:01:30]} 65.Rh5 {[%clk 00:26:42]
[%emt 00:02:46]} 65...Rg7 {[%clk 00:20:03] [%emt 00:02:16]} 66.Kh4 {[%clk
00:24:47] [%emt 00:02:25]} 66...Reg6 {[%clk 00:14:12] [%emt 00:06:21]} 67.g5 
{[%clk 00:25:02] [%emt 00:00:16]} 67...Rf7 {[%clk 00:14:38] [%emt 00:00:04]} 
68.Rxh6+ {[%clk 00:23:57] [%emt 00:01:34]} 68...Rxh6+ {[%clk 00:15:05] [%emt
00:00:03]} 69.gxh6 {[%clk 00:24:25] [%emt 00:00:02]} 69...Rxf2 {[%clk 00:15:12]
[%emt 00:00:23]} 70.Bxf2 {[%clk 00:24:50] [%emt 00:00:05]} 70...Kxh6 {[%clk
00:15:38] [%emt 00:00:04]} 71.Kg4 {[%clk 00:25:16] [%emt 00:00:04]} 71...e3 
{[%clk 00:16:05] [%emt 00:00:04]} 72.Bxe3+ {[%clk 00:25:43] [%emt 00:00:03]} 1/2-1/2